bitfinex/quotes_SOLUSD_20220208
["timestamp","ask_amount","ask_price","bid_price","bid_amount"]
[1644335721710,41.02531376,112.3,112.22,24.3943]
[1644335722912,41.02531376,112.3,112.22,24.1443]
[1644335723313,41.02531376,112.3,112.22,24.3943]
[1644335723912,41.02531376,112.3,112.22,24.1443]
[1644335724112,41.02531376,112.3,112.22,30.1443]
[1644335724314,41.02531376,112.3,112.22,24.1443]
[1644335724912,41.02531376,112.3,112.22,13.3643]
[1644335725712,41.02531376,112.3,112.2,0.024]
[1644335725915,54.39101376,112.3,112.2,13.3675]
[1644335727118,56.49876925,112.3,112.19,0.024]
[1644335727320,13.3728,112.26,112.17,0.024]
[1644335727717,13.3728,112.26,112.14,22.5814]
[1644335727718,15.48055549,112.26,112.14,22.5814]
[1644335727916,41.67402114,112.25,112.14,22.5814]
[1644335728115,41.67402114,112.25,112.14,22.5574]
[1644335728316,41.67402114,112.25,112.13,55.381]
[1644335728516,41.67402114,112.25,112.13,44.601]
[1644335728716,13.3747,112.24,112.15,13.3734]
[1644335728915,42.61304252,112.23,112.15,13.3734]
[1644335731521,13.3735,112.25,112.15,13.3734]
[1644335731721,10.78,112.29,112.15,26.24076576]
[1644335731923,10.78,112.29,112.15,26.26476576]
[1644335732121,70.7902,112.3,112.15,26.26476576]
[1644335732522,43.72444785,112.29,112.15,103.29806576]
[1644335732725,43.72444785,112.29,112.16,27.7694]
[1644335732923,43.72444785,112.29,112.19,13.366]
[1644335733224,43.72444785,112.29,112.19,24.396]
[1644335733423,43.72444785,112.29,112.19,26.23336576]
[1644335733724,43.72444785,112.29,112.19,25.98336576]
[1644335733926,43.72444785,112.29,112.19,24.146]
[1644335734126,43.72444785,112.29,112.19,24.396]
[1644335734526,43.72444785,112.29,112.19,24.146]
[1644335734828,43.72444785,112.29,112.19,10.78]
[1644335735025,69.98040334,112.29,112.18,0.024]
[1644335735225,69.98040334,112.29,112.17,13.3945]
[1644335735427,71.23239376,112.29,112.17,13.3945]
[1644335736529,27.50794591,112.29,112.17,13.3945]
[1644335736726,2.181,112.31,112.18,121.0]
[1644335736727,13.3676,112.31,112.18,121.0]
[1644335736927,1.26245618,112.33,112.21,13.3653]
[1644335737127,1.26245618,112.34,112.22,10.78]
[1644335737333,1.26245618,112.36,112.23,53.72]
[1644335737532,1.26245618,112.36,112.24,15.232]
[1644335737729,1.26245618,112.37,112.25,53.72]
[1644335737928,1.26245618,112.39,112.26,15.23]
[1644335738127,3.79076948,112.45,112.26,15.23]
[1644335738128,1.26245618,112.41,112.26,76.79751332]
[1644335738329,1.26245618,112.41,112.27,0.44]
[1644335738527,1.26245618,112.43,112.28,64.94]
[1644335738729,41.54509553,112.42,112.28,80.57553329]
[1644335738932,41.54509553,112.42,112.29,1.84751332]
[1644335739129,41.54509553,112.42,112.3,10.78]
[1644335739334,41.54509553,112.42,112.33,13.3492]
[1644335739533,42.80755171,112.42,112.33,13.3492]
[1644335739730,1.26245618,112.4,112.31,10.78]
[1644335739935,43.07801119,112.39,112.31,10.78]
[1644335740333,41.81555501,112.39,112.28,10.78]
[1644335740731,41.81555501,112.39,112.28,16.78]
[1644335740933,1.26245618,112.4,112.29,13.3565]
[1644335741132,1.26245618,112.41,112.3,10.78]
[1644335741334,1.26245618,112.42,112.27,71.6991]
[1644335741533,1.26245618,112.4,112.27,71.6991]
[1644335741933,47.15832522,112.39,112.27,71.6991]
[1644335742335,61.7789814,112.39,112.28,13.3575]
[1644335742537,61.7789814,112.39,112.27,22.9984]
[1644335742732,61.7789814,112.39,112.26,10.78]
[1644335743133,48.4207814,112.39,112.26,12.62378718]
[1644335743433,48.4207814,112.39,112.26,25.98368718]
[1644335743657,48.4207814,112.39,112.26,26.23368718]
[1644335744057,47.15832522,112.39,112.26,26.23368718]
[1644335744456,47.15832522,112.39,112.26,24.3899]
[1644335744656,47.15832522,112.39,112.26,13.3599]
[1644335744657,60.51642522,112.39,112.26,13.3599]
[1644335745162,47.15832522,112.39,112.27,10.78]
[1644335745357,47.15832522,112.39,112.29,13.3562]
[1644335745557,47.15832522,112.39,112.29,24.1362]
[1644335745958,47.15832522,112.39,112.29,24.3862]
[1644335746156,47.15832522,112.39,112.29,13.6062]
[1644335746557,47.15832522,112.39,112.29,24.3862]
[1644335747159,47.15832522,112.39,112.3,1.84390514]
[1644335747358,47.15832522,112.39,112.31,13.3536]
[1644335747958,47.15832522,112.39,112.28,12.62390514]
[1644335748158,47.15832522,112.39,112.28,10.78]
[1644335748558,47.15832522,112.39,112.28,24.1379]
[1644335749761,60.51672522,112.39,112.28,24.1379]
[1644335750659,60.51672522,112.39,112.28,10.78]
[1644335751060,60.51672522,112.39,112.28,11.03]
[1644335751862,60.51672522,112.39,112.28,12.87390514]
[1644335752768,60.51672522,112.39,112.28,26.23170514]
[1644335754265,47.15832522,112.39,112.28,26.23170514]
[1644335754669,13.3556,112.41,112.28,26.23170514]
[1644335754865,24.5467,112.42,112.28,85.95170514]
[1644335755067,24.5467,112.42,112.28,99.92972511]
[1644335755865,37.35135833,112.41,112.28,99.92972511]
[1644335756265,37.35135833,112.41,112.28,46.20972511]
[1644335756465,37.35135833,112.41,112.28,26.23170514]
[1644335757870,50.70625833,112.41,112.28,26.23170514]
[1644335758067,37.35135833,112.41,112.28,79.95170514]
[1644335758268,37.35135833,112.41,112.28,26.23170514]
[1644335758472,37.35135833,112.41,112.28,79.95170514]
[1644335758669,37.35135833,112.41,112.28,85.95170514]
[1644335758869,37.35135833,112.41,112.28,99.92972511]
[1644335759067,48.211,112.43,112.28,99.92972511]
[1644335759268,48.211,112.43,112.28,124.40292511]
[1644335759470,48.211,112.43,112.28,137.62275133]
[1644335760068,41.75468827,112.42,112.28,137.62275133]
[1644335762973,41.75468827,112.42,112.28,83.65275133]
[1644335763170,55.10778827,112.42,112.28,83.65275133]
[1644335763372,56.37024445,112.42,112.28,83.65275133]
[1644335764372,1.26245618,112.41,112.28,83.90275133]
[1644335764571,41.90370851,112.4,112.28,83.90275133]
[1644335764971,43.16616469,112.4,112.28,83.90275133]
[1644335765372,41.90370851,112.4,112.28,83.90275133]
[1644335765576,43.16616469,112.4,112.28,83.90275133]
[1644335765974,41.90370851,112.4,112.28,83.90275133]
[1644335767073,43.16616469,112.4,112.28,83.90275133]
[1644335767272,1.26245618,112.39,112.28,83.90275133]
[1644335767476,45.62929321,112.38,112.28,83.90275133]
[1644335767674,45.62929321,112.38,112.28,70.68292511]
[1644335768476,14.61665618,112.41,112.28,71.93374944]
[1644335768675,14.61665618,112.41,112.29,1.25082433]
[1644335768875,1.26245618,112.41,112.32,13.3525]
[1644335769075,1.26245618,112.42,112.32,13.3525]
[1644335769277,1.26245618,112.42,112.33,1.84261627]
[1644335769475,48.00173148,112.42,112.33,1.84261627]
[1644335769677,1.26245618,112.41,112.33,2.09261627]
[1644335769875,46.7392753,112.42,112.33,15.44511627]
[1644335769876,48.00173148,112.42,112.33,15.44511627]
[1644335770075,46.7392753,112.42,112.34,1.84261627]
[1644335770275,46.7392753,112.42,112.34,2.09261627]
[1644335771477,46.2392753,112.42,112.35,13.3497]
[1644335772078,47.50173148,112.42,112.35,13.3497]
[1644335773284,47.50173148,112.42,112.33,13.3518]
[1644335773481,1.26245618,112.41,112.3,93.1404]
[1644335773680,46.2392753,112.42,112.28,24.72241619]
[1644335773681,1.26245618,112.4,112.28,24.72241619]
[1644335774082,1.26245618,112.38,112.26,60.12395716]
[1644335774281,48.36377676,112.37,112.26,60.12395716]
[1644335774681,61.72217676,112.37,112.29,13.3567]
[1644335775484,61.72217676,112.37,112.26,46.39211619]
[1644335775684,61.72217676,112.37,112.26,0.024]
[1644335775888,54.46339797,112.35,112.25,0.024]
[1644335776086,54.46339797,112.35,112.26,0.024]
[1644335776283,54.46339797,112.35,112.25,1.59116905]
[1644335776484,54.46339797,112.35,112.25,3.43378524]
[1644335776684,54.46339797,112.35,112.26,13.3615]
[1644335778387,54.46339797,112.35,112.25,1.86661619]
[1644335778595,55.72585415,112.35,112.25,0.024]
[1644335778786,10.78,112.34,112.23,0.024]
[1644335778987,12.04245618,112.34,112.22,1.86661619]
[1644335779187,13.3655,112.31,112.22,1.86661619]
[1644335779386,47.32154329,112.3,112.22,14.89439649]
[1644335779586,47.32154329,112.3,112.22,14.87039649]
[1644335779988,47.32154329,112.3,112.22,15.12039649]
[1644335780689,13.3655,112.31,112.22,28.48569649]
[1644335780892,12.04245618,112.35,112.22,55.68354268]
[1644335781088,22.925,112.36,112.22,66.48754268]
[1644335781288,22.925,112.36,112.23,0.024]
[1644335781488,22.925,112.36,112.23,10.804]
[1644335781688,36.69984377,112.35,112.24,16.3281412]
[1644335782090,36.69984377,112.35,112.25,1.84261619]
[1644335782291,36.69984377,112.35,112.25,2.09261619]
[1644335782492,36.69984377,112.35,112.26,10.29859568]
[1644335782693,36.69984377,112.35,112.26,23.65789568]
[1644335782892,36.69984377,112.35,112.27,1.83824735]
[1644335783293,36.69984377,112.35,112.27,2.08824735]
[1644335783796,36.69984377,112.35,112.28,3.21268966]
[1644335783993,36.69984377,112.35,112.29,13.3581]
[1644335784198,22.7601,112.38,112.29,15.44634735]
[1644335784393,23.92505618,112.39,112.3,1.83824735]
[1644335784394,1.26245618,112.39,112.3,1.83824735]
[1644335784694,1.26245618,112.4,112.3,2.08824735]
[1644335785111,1.26245618,112.41,112.31,1.83824735]
[1644335785312,39.18185815,112.4,112.31,2.08824735]
[1644335785611,39.18185815,112.4,112.32,1.83824735]
[1644335785811,39.18185815,112.4,112.32,15.44224735]
[1644335786712,52.53585815,112.4,112.32,1.83824735]
[1644335786912,52.53585815,112.4,112.28,12.61824735]
[1644335787112,1.26245618,112.38,112.28,1.83824735]
[1644335787313,37.78585096,112.37,112.29,1.83824735]
[1644335787714,37.78585096,112.37,112.27,47.74864735]
[1644335787913,52.40580714,112.37,112.27,15.19794735]
[1644335788213,52.40580714,112.37,112.27,13.3597]
[1644335788413,1.26245618,112.36,112.27,13.3597]
[1644335788614,39.30549423,112.35,112.27,13.3597]
[1644335789016,13.3607,112.34,112.27,13.3597]
[1644335789221,36.07562384,112.33,112.27,13.3597]
[1644335790217,49.43762384,112.33,112.25,15.22424735]
[1644335790517,49.43762384,112.33,112.25,15.20024735]
[1644335795825,49.43762384,112.33,112.25,13.362]
[1644335796226,49.43762384,112.33,112.25,15.07933567]
[1644335796427,49.43762384,112.33,112.25,13.362]
[1644335799029,4.68847915,112.38,112.3,174.72]
[1644335799030,2.50547915,112.38,112.3,174.72]
[1644335799225,2.52466316,112.43,112.33,1.84789208]
[1644335799426,2.52466316,112.47,112.33,10.78]
[1644335799625,5.04932632,112.47,112.33,11.03]
[1644335799827,43.92916972,112.46,112.33,11.03]
[1644335800026,15.87476316,112.45,112.34,1.84789208]
[1644335800225,2.52466316,112.42,112.26,10.78]
[1644335800425,12.962,112.41,112.23,34.7004]
[1644335800630,23.4524,112.4,112.26,0.024]
[1644335800827,34.2324,112.4,112.25,10.78]
[1644335801027,13.359,112.38,112.26,13.3611]
[1644335801327,34.6737456,112.37,112.27,3.75408546]
[1644335801530,34.6737456,112.37,112.26,0.024]
[1644335801731,34.6737456,112.37,112.25,55.3319]
[1644335802430,48.0330456,112.37,112.26,13.3606]
[1644335802631,58.8130456,112.37,112.26,13.3846]
[1644335802929,48.75307118,112.35,112.26,0.024]
[1644335803128,48.75307118,112.35,112.24,0.024]
[1644335804732,13.3642,112.33,112.24,13.3873]
[1644335804934,40.21384015,112.32,112.24,13.3873]
[1644335805133,40.21384015,112.32,112.24,13.6133]
[1644335806235,53.57864015,112.32,112.24,0.25]
[1644335806641,40.21384015,112.32,112.23,0.25]
[1644335806838,40.21384015,112.32,112.22,58.06013826]
[1644335807036,40.21384015,112.32,112.23,14.82359775]
[1644335807236,40.21384015,112.32,112.24,13.3638]
[1644335807237,53.57854015,112.32,112.24,13.3638]
[1644335807436,53.57854015,112.32,112.22,0.024]
[1644335807637,53.57854015,112.32,112.21,37.171414]
[1644335807939,53.57854015,112.32,112.21,51.99501175]
[1644335808138,53.57854015,112.32,112.22,9.58096118]
[1644335808338,40.21384015,112.32,112.24,3.93032416]
[1644335808539,33.9671,112.35,112.24,3.93032416]
[1644335808740,33.9671,112.35,112.24,4.18032416]
[1644335808741,23.1871,112.35,112.24,4.18032416]
[1644335808938,23.1871,112.35,112.24,6.0195278]
[1644335809141,23.1871,112.35,112.24,4.18032416]
[1644335809541,38.07379349,112.34,112.24,4.18032416]
[1644335809739,38.07379349,112.34,112.24,17.54322416]
[1644335810544,38.07379349,112.34,112.24,32.36682191]
[1644335810742,38.07379349,112.34,112.26,9.58096118]
[1644335810946,13.30466316,112.41,112.26,20.36096118]
[1644335811142,13.3563,112.4,112.27,13.3575]
[1644335811343,13.3563,112.4,112.27,13.6075]
[1644335811847,34.89638361,112.39,112.27,13.6075]
[1644335812042,34.89638361,112.39,112.28,3.93032416]
[1644335812245,48.25388361,112.39,112.28,4.18032416]
[1644335812444,48.25388361,112.39,112.31,13.3547]
[1644335812445,34.89638361,112.39,112.31,13.3547]
[1644335812843,34.89638361,112.39,112.32,3.93032416]
[1644335813245,34.89638361,112.39,112.32,4.18032416]
[1644335813544,34.89638361,112.39,112.32,0.25]
[1644335813744,2.52466316,112.43,112.33,13.3527]
[1644335813945,2.183,112.45,112.33,13.3527]
[1644335813946,2.52466316,112.45,112.33,13.3527]
[1644335814144,2.52466316,112.45,112.33,13.6027]
[1644335814845,44.64242329,112.44,112.33,13.6027]
[1644335815244,46.75017878,112.44,112.33,0.25]
[1644335815449,60.05484194,112.44,112.31,13.3545]
[1644335815644,2.52466316,112.42,112.31,13.3545]
[1644335815844,13.3557,112.4,112.31,13.3545]
[1644335816246,39.00640858,112.39,112.29,13.3568]
[1644335816450,39.00640858,112.39,112.26,10.78]
[1644335816646,41.11416407,112.39,112.25,0.024]
[1644335817045,39.00640858,112.39,112.25,14.84759775]
[1644335817246,39.00640858,112.39,112.26,55.03717395]
[1644335817448,39.00640858,112.39,112.28,3.00041139]
[1644335817846,39.00640858,112.39,112.28,3.25041139]
[1644335818047,39.00640858,112.39,112.28,2.75041139]
[1644335818571,39.00640858,112.39,112.31,10.34356723]
[1644335818776,24.5387,112.41,112.31,10.59356723]
[1644335819072,22.8653,112.42,112.31,10.59356723]
[1644335819270,22.8653,112.42,112.31,21.37356723]
[1644335819670,43.93878789,112.41,112.31,21.37356723]
[1644335820872,43.93878789,112.41,112.32,13.3536]
[1644335821272,43.93878789,112.41,112.32,13.6036]
[1644335822077,43.93878789,112.41,112.32,13.3536]
[1644335822674,43.93878789,112.41,112.29,44.5149]
[1644335822879,43.93878789,112.41,112.3,13.3557]
[1644335823075,59.40064338,112.41,112.3,13.3557]
[1644335823273,61.92530654,112.41,112.3,13.3557]
[1644335823475,72.70530654,112.41,112.3,13.3557]
[1644335823676,72.70530654,112.41,112.25,81.09089703]
[1644335823975,26.8807,112.4,112.26,13.3605]
[1644335824179,10.78,112.39,112.26,13.3605]
[1644335824382,12.88775549,112.39,112.26,13.3605]
[1644335824578,15.41241865,112.39,112.26,13.3605]
[1644335824775,15.41241865,112.39,112.25,0.024]
[1644335824776,13.362,112.36,112.25,0.024]
[1644335825775,41.4513744,112.35,112.25,10.00564566]
[1644335825977,43.03920968,112.33,112.25,23.36794566]
[1644335826177,43.03920968,112.33,112.25,23.34394566]
[1644335826376,43.03920968,112.33,112.25,13.6123]
[1644335826776,43.03920968,112.33,112.25,13.3623]
[1644335827874,43.03920968,112.33,112.25,16.2986498]
[1644335828077,43.03920968,112.33,112.25,16.5486498]
[1644335828777,48.2117,112.37,112.25,16.5486498]
[1644335828977,55.3124,112.39,112.25,16.5486498]
[1644335829178,55.3124,112.39,112.25,62.9434498]
[1644335829378,63.19416316,112.41,112.26,12.61931441]
[1644335829580,47.7805,112.41,112.3,13.3544]
[1644335829881,41.46976116,112.4,112.31,10.07493554]
[1644335830079,41.46976116,112.4,112.31,54.58223554]
[1644335830280,41.46976116,112.4,112.31,54.83223554]
[1644335830478,41.46976116,112.4,112.31,44.7573]
[1644335830679,41.46976116,112.4,112.33,13.3522]
[1644335831580,41.46976116,112.4,112.3,12.47753127]
[1644335831782,41.46976116,112.4,112.31,0.25]
[1644335832184,2.52466316,112.43,112.31,13.6045]
[1644335832385,2.52466316,112.44,112.31,15.44381441]
[1644335832583,15.87476316,112.44,112.31,26.22381441]
[1644335832783,13.3501,112.44,112.31,26.22381441]
[1644335833183,42.25438501,112.43,112.35,13.3504]
[1644335834890,55.60618501,112.43,112.35,13.3504]
[1644335835089,55.10618501,112.43,112.35,13.3504]
[1644335835487,55.10618501,112.43,112.31,12.61931441]
[1644335835687,65.3889405,112.43,112.3,38.8767]
[1644335835887,13.3573,112.39,112.3,28.0967]
[1644335836087,13.3573,112.39,112.3,4.448]
[1644335836888,46.88545563,112.38,112.3,4.448]
[1644335837087,13.3549,112.4,112.31,2.45100726]
[1644335837289,52.01086316,112.42,112.31,2.45100726]
[1644335837688,49.4862,112.42,112.31,2.70100726]
[1644335838188,62.8395,112.42,112.32,13.3543]
[1644335838387,64.94725549,112.42,112.32,13.3543]
[1644335838888,67.47191865,112.42,112.32,13.3543]
[1644335839089,41.43079778,112.41,112.32,13.3543]
[1644335839296,43.43017674,112.39,112.32,13.3543]
[1644335839994,43.43017674,112.39,112.31,0.25]
[1644335839995,43.43017674,112.39,112.31,13.3556]
[1644335840190,43.43017674,112.39,112.28,24.5972]
[1644335840390,43.43017674,112.39,112.28,24.8472]
[1644335840589,56.78627674,112.39,112.28,24.8472]
[1644335840992,56.78627674,112.39,112.28,24.5972]
[1644335841398,56.78627674,112.39,112.27,13.3593]
[1644335841591,67.56627674,112.39,112.27,13.3593]
[1644335841790,70.0909399,112.39,112.27,13.3593]
[1644335841990,2.10775549,112.38,112.27,13.3593]
[1644335842193,13.361,112.35,112.27,13.3593]
[1644335842790,38.85860288,112.34,112.27,13.3593]
[1644335846197,46.2711,112.38,112.27,13.6093]
[1644335846399,2.52466316,112.4,112.31,13.355]
[1644335846599,52.20822594,112.41,112.31,13.355]
[1644335846802,47.1545,112.41,112.31,13.355]
[1644335847200,38.96150779,112.4,112.31,13.355]
[1644335847803,52.31650779,112.4,112.31,13.355]
[1644335848002,38.96150779,112.4,112.32,11.17459673]
[1644335848200,38.96150779,112.4,112.33,13.3523]
[1644335848603,38.96150779,112.4,112.31,0.25]
[1644335849006,38.96150779,112.4,112.3,10.78]
[1644335849605,52.31660779,112.4,112.32,13.3546]
[1644335850005,52.31660779,112.4,112.3,10.78]
[1644335850207,52.31660779,112.4,112.3,11.03]
[1644335850413,52.31660779,112.4,112.3,10.78]
[1644335850606,52.31660779,112.4,112.29,13.3571]
[1644335850807,56.94902644,112.4,112.29,13.3571]
[1644335852009,56.94902644,112.4,112.28,61.4424]
[1644335852212,2.52466316,112.39,112.28,61.4424]
[1644335852426,5.05490197,112.39,112.28,61.4424]
[1644335852625,5.05490197,112.39,112.28,13.3594]
[1644335852825,38.43615359,112.35,112.28,13.3594]
[1644335853224,38.43615359,112.35,112.26,13.3848]
[1644335853426,38.43615359,112.35,112.26,13.3608]
[1644335853825,51.79695359,112.35,112.26,13.3608]
[1644335854125,51.79695359,112.35,112.26,16.33690661]
[1644335854326,24.8268,112.37,112.28,10.53517873]
[1644335854625,23.8081,112.38,112.28,23.89417873]
[1644335855225,23.3081,112.38,112.28,24.14417873]
[1644335855424,41.60788625,112.37,112.28,24.14417873]
[1644335856825,54.96588625,112.37,112.28,24.14417873]
[1644335857928,54.96588625,112.37,112.28,23.89417873]
[1644335858130,41.60788625,112.37,112.28,23.89417873]
[1644335858328,41.60788625,112.37,112.31,13.356]
[1644335859226,41.60788625,112.37,112.28,44.519]
[1644335859428,41.60788625,112.37,112.3,13.3571]
[1644335860830,54.96578625,112.37,112.3,13.3571]
[1644335861730,41.60788625,112.37,112.3,13.3571]
[1644335863733,54.96588625,112.37,112.3,13.3571]
[1644335864736,54.96588625,112.37,112.29,13.3585]
[1644335864937,54.96588625,112.37,112.27,10.78]
[1644335865840,54.96588625,112.37,112.28,13.3597]
[1644335867839,59.5983049,112.37,112.27,13.361]
[1644335868940,57.49054941,112.37,112.28,11.02271064]
[1644335869139,54.96588625,112.37,112.28,24.38191064]
[1644335869339,13.358,112.37,112.29,1.82989454]
[1644335869740,13.358,112.37,112.28,21.80271064]
[1644335869940,13.3564,112.38,112.28,21.80271064]
[1644335870140,2.52466316,112.39,112.28,21.80271064]
[1644335870141,2.52466316,112.39,112.3,13.3567]
[1644335870341,36.97377314,112.4,112.31,2.4885747]
[1644335870540,36.97377314,112.4,112.31,4.31846924]
[1644335870741,36.97377314,112.4,112.32,12.60989454]
[1644335871145,36.97377314,112.4,112.32,12.85989454]
[1644335871342,36.97377314,112.4,112.33,13.3522]
[1644335872742,50.32747314,112.4,112.33,13.3522]
[1644335875645,52.8521363,112.4,112.31,13.3555]
[1644335875845,54.95989179,112.4,112.31,13.3555]
[1644335876046,13.3572,112.37,112.29,46.9955]
[1644335876249,13.3572,112.37,112.28,4.449]
[1644335877146,44.15642145,112.36,112.28,15.29842067]
[1644335877446,57.51472145,112.36,112.29,13.3586]
[1644335878753,44.15642145,112.36,112.29,13.3586]
[1644335879151,44.15642145,112.36,112.29,25.82123875]
[1644335879349,44.15642145,112.36,112.29,25.57123875]
[1644335879550,44.15642145,112.36,112.29,15.18849454]
[1644335881153,44.15642145,112.36,112.29,16.0329867]
[1644335881354,13.357,112.37,112.29,16.0329867]
[1644335881555,13.3559,112.38,112.29,16.0329867]
[1644335881853,2.52466316,112.4,112.3,10.78]
[1644335882052,2.52466316,112.42,112.33,13.3518]
[1644335882351,44.93766883,112.41,112.33,13.3518]
[1644335882752,58.29006883,112.41,112.33,13.3518]
[1644335883754,58.29006883,112.41,112.33,14.5149447]
[1644335883959,47.46233199,112.41,112.34,1.83490109]
[1644335884159,44.93766883,112.41,112.35,13.3509]
[1644335884758,44.93766883,112.41,112.31,10.78]
[1644335885157,47.46233199,112.41,112.31,11.03]
[1644335885358,47.46233199,112.41,112.31,22.83039739]
[1644335885761,60.81463199,112.41,112.33,13.3542]
[1644335887857,60.81463199,112.41,112.32,13.3553]
[1644335888059,60.81463199,112.41,112.3,47.5144]
[1644335888257,60.81463199,112.41,112.28,12.61490109]
[1644335888258,5.05898528,112.4,112.28,12.61490109]
[1644335888457,13.3586,112.37,112.28,1.83490109]
[1644335888659,35.50518025,112.36,112.28,1.83490109]
[1644335888857,13.3586,112.37,112.29,2.1584439]
[1644335889063,48.6753,112.38,112.29,15.5173439]
[1644335889258,48.6753,112.38,112.3,1.83490109]
[1644335889457,62.0313,112.38,112.28,58.754614]
[1644335889857,62.0313,112.38,112.28,59.004614]
[1644335890063,62.0313,112.38,112.26,60.64979775]
[1644335890259,2.10775549,112.37,112.26,56.6062]
[1644335890460,13.3614,112.34,112.26,45.8262]
[1644335890662,45.3737017,112.33,112.26,45.8022]
[1644335891163,13.3614,112.34,112.27,13.3614]
[1644335891362,23.8002,112.36,112.27,13.3614]
[1644335891563,23.8769,112.38,112.28,1.83490109]
[1644335891760,23.8769,112.38,112.28,0.25]
[1644335892162,45.93001753,112.37,112.28,10.28822488]
[1644335892460,45.93001753,112.37,112.31,13.355]
[1644335892859,45.43001753,112.37,112.31,13.355]
[1644335893682,37.2333,112.38,112.31,13.355]
[1644335893881,13.3545,112.39,112.31,13.355]
[1644335894087,13.3545,112.39,112.31,13.605]
[1644335894485,4.65466316,112.42,112.31,13.605]
[1644335894684,48.59340326,112.41,112.32,10.03822488]
[1644335894888,61.94530326,112.41,112.34,13.352]
[1644335895083,61.94530326,112.41,112.34,17.32506046]
[1644335895485,61.94530326,112.41,112.34,13.352]
[1644335896686,61.94530326,112.41,112.33,13.3541]
[1644335898185,61.94530326,112.41,112.33,14.23194425]
[1644335898586,61.94530326,112.41,112.33,13.3541]
[1644335898985,2.52466316,112.43,112.36,13.3506]
[1644335899588,2.52466316,112.44,112.36,13.3506]
[1644335899989,49.27163199,112.43,112.36,13.3506]
[1644335901388,51.79629515,112.43,112.32,55.286]
[1644335901590,2.53249052,112.42,112.31,10.78]
[1644335901794,13.3558,112.39,112.3,71.0345]
[1644335901989,13.3558,112.39,112.3,48.0949]
[1644335902491,57.06984952,112.39,112.31,12.59672211]
[1644335902690,57.06984952,112.39,112.32,13.3555]
[1644335904593,57.06984952,112.39,112.3,48.0949]
[1644335904794,59.59451268,112.39,112.3,48.0949]
[1644335905296,59.59451268,112.39,112.28,55.12662213]
[1644335905496,59.59451268,112.39,112.28,10.60492213]
[1644335905699,5.05814776,112.38,112.28,0.024]
[1644335905895,5.05814776,112.38,112.27,25.55537553]
[1644335905896,28.36374776,112.38,112.27,25.55537553]
[1644335906096,28.36374776,112.38,112.29,13.3591]
[1644335906097,13.3599,112.35,112.29,13.3591]
[1644335906695,43.26724418,112.34,112.29,13.3591]
[1644335907800,13.3599,112.35,112.29,13.3591]
[1644335908001,13.3584,112.36,112.29,13.3591]
[1644335908809,44.65067542,112.35,112.29,13.3591]
[1644335909203,58.01017542,112.35,112.28,13.3604]
[1644335909904,58.01017542,112.35,112.27,0.024]
[1644335910204,58.01017542,112.35,112.25,46.36790108]
[1644335910205,58.01017542,112.35,112.25,2.85967836]
[1644335910608,58.01017542,112.35,112.26,13.3627]
[1644335910807,58.01017542,112.35,112.26,13.3867]
[1644335911206,58.01017542,112.35,112.26,13.3627]
[1644335911806,58.01017542,112.35,112.25,13.3874]
[1644335912607,58.01017542,112.35,112.25,0.024]
[1644335912808,60.11793091,112.35,112.25,0.024]
[1644335913107,62.64259407,112.35,112.25,0.024]
[1644335913709,58.01017542,112.35,112.25,0.024]
[1644335914311,60.11793091,112.35,112.25,0.024]
[1644335915810,58.01017542,112.35,112.25,0.024]
[1644335916510,58.01017542,112.35,112.26,12.20402471]
[1644335916712,58.01017542,112.35,112.26,10.32899308]
[1644335917412,58.01017542,112.35,112.25,0.024]
[1644335917815,58.01017542,112.35,112.26,13.3622]
[1644335918217,58.01017542,112.35,112.26,13.3862]
[1644335918415,58.01017542,112.35,112.26,23.63725068]
[1644335918618,58.01017542,112.35,112.26,23.61325068]
[1644335919315,59.27419953,112.35,112.26,23.61325068]
[1644335920435,59.27419953,112.35,112.26,13.3622]
[1644335920837,1.26402411,112.34,112.26,13.3622]
[1644335921037,13.3619,112.33,112.26,13.3622]
[1644335921536,36.73665571,112.32,112.26,13.3622]
[1644335921941,1.26402411,112.34,112.26,13.3622]
[1644335922138,26.24812411,112.36,112.26,15.23716521]
[1644335922338,26.24812411,112.36,112.26,15.51116521]
[1644335922548,24.9841,112.36,112.26,13.6362]
[1644335922939,44.23144192,112.35,112.26,13.3862]
[1644335923139,57.59074192,112.35,112.27,0.82356905]
[1644335923339,57.59074192,112.35,112.28,13.3593]